bitfinex/quotes_SOLUSD_20250915
["timestamp","ask_amount","ask_price","bid_price","bid_amount"]
[1757975289383,0.03,235.12,235.1,37.01348586]
[1757975289886,0.72,235.12,235.1,37.01348586]
[1757975290720,0.03,235.12,235.1,37.01348586]
[1757975292596,0.72,235.12,235.1,37.01348586]
[1757975293221,0.03,235.12,235.1,37.01348586]
[1757975293733,0.72,235.12,235.1,37.01348586]
[1757975294631,0.69,235.11,235.1,37.01348586]
[1757975295124,0.69,235.11,235.09,0.06]
[1757975295299,15.65049798,235.1,235.09,0.06]
[1757975295491,21.58500159,235.1,235.09,0.06]
[1757975295696,18.02149245,235.1,235.09,0.06]
[1757975296522,22.27500159,235.1,235.09,0.06]
[1757975298225,18.02149245,235.1,235.09,0.06]
[1757975298899,1.68099447,235.1,235.09,0.06]
[1757975299109,0.03,235.12,235.09,5.01369007]
[1757975299295,0.72,235.12,235.09,6.36859404]
[1757975299499,0.72,235.12,235.09,8.48349801]
[1757975299922,0.03,235.12,235.09,8.48349801]
[1757975300228,1.71235551,235.12,235.09,9.18349801]
[1757975301014,1.71235551,235.12,235.1,2.05490397]
[1757975301206,1.71235551,235.12,235.11,0.7]
[1757975301510,1.71235551,235.12,235.1,2.75490397]
[1757975301714,0.03,235.12,235.1,2.75490397]
[1757975301902,1.71310663,235.12,235.1,2.75490397]
[1757975302909,1.71310663,235.12,235.11,36.99332822]
[1757975303825,1.71308664,235.12,235.11,36.99332822]
[1757975307923,1.71308664,235.12,235.11,39.74823219]
[1757975308747,1.71308664,235.12,235.11,52.53132442]
[1757975309320,1.71308664,235.12,235.11,51.83132442]
[1757975310019,1.71308664,235.12,235.11,49.77642045]
[1757975311243,2.40308664,235.12,235.11,32.74]
[1757975311532,2.40308664,235.12,235.11,32.72]
[1757975312644,2.40367579,235.12,235.11,32.72]
[1757975315244,1.71367579,235.12,235.11,4.25332822]
[1757975315454,1.71367579,235.12,235.11,36.97332822]
[1757975316156,1.71367579,235.12,235.11,37.64332822]
[1757975316330,0.03,235.12,235.11,37.64332822]
[1757975316727,0.03,235.12,235.11,50.42587578]
[1757975317147,1.71382675,235.12,235.11,50.42587578]
[1757975319637,0.03,235.12,235.11,50.42587578]
[1757975320541,0.03,235.12,235.11,50.8512086]
[1757975321951,1e-08,235.14,235.13,26.0]
[1757975322135,1e-08,235.14,235.13,61.20020061]
[1757975322339,1e-08,235.14,235.13,61.87020061]
[1757975322754,1e-08,235.14,235.13,63.5740321]
[1757975323238,1e-08,235.14,235.13,67.82699854]
[1757975325536,1e-08,235.14,235.13,69.19894038]
[1757975325944,1e-08,235.14,235.13,71.25384435]
[1757975326349,1e-08,235.14,235.13,67.82699854]
[1757975327348,1e-08,235.14,235.13,67.80699854]
[1757975327735,1e-08,235.14,235.13,32.38209457]
[1757975327936,0.71000001,235.14,235.13,64.65679793]
[1757975328166,1e-08,235.14,235.13,64.65679793]
[1757975329558,1e-08,235.14,235.13,31.95679793]
[1757975329752,1e-08,235.14,235.13,64.65679793]
[1757975331263,1e-08,235.14,235.13,31.95679793]
[1757975331555,1e-08,235.14,235.13,64.65679793]
[1757975341972,1e-08,235.14,235.13,65.37679793]
[1757975342155,1e-08,235.14,235.13,66.69090832]
[1757975343377,1e-08,235.14,235.13,66.75090832]
[1757975344261,1e-08,235.14,235.13,66.03090832]
[1757975344855,1e-08,235.14,235.13,33.33090832]
[1757975345061,1e-08,235.14,235.13,66.03090832]
[1757975348588,1e-08,235.14,235.13,64.71679793]
[1757975348887,1e-08,235.14,235.13,65.43679793]
[1757975349670,1e-08,235.14,235.13,65.86209457]
[1757975354390,1e-08,235.14,235.13,32.44209457]
[1757975354582,0.68000001,235.14,235.13,64.69679793]
[1757975354884,1e-08,235.14,235.13,64.69679793]
[1757975357691,0.68000001,235.14,235.13,64.69679793]
[1757975358272,1e-08,235.14,235.13,64.69679793]
[1757975360696,1e-08,235.14,235.13,66.01090832]
[1757975362389,1e-08,235.14,235.13,66.73090832]
[1757975372303,1e-08,235.14,235.13,66.87306989]
[1757975374014,1e-08,235.17,235.14,0.14216157]
[1757975374178,1e-08,235.19,235.18,26.0]
[1757975374383,1e-08,235.19,235.18,61.08931661]
[1757975374704,1e-08,235.19,235.18,62.7927853]
[1757975374910,1e-08,235.19,235.18,62.1227853]
[1757975375601,1e-08,235.19,235.18,67.04484755]
[1757975376097,1e-08,235.19,235.18,66.37484755]
[1757975387814,1e-08,235.19,235.18,67.11282353]
[1757975394927,1e-08,235.19,235.18,67.17282353]
[1757975395707,1e-08,235.19,235.18,32.44073716]
[1757975396026,1e-08,235.19,235.18,67.15282353]
[1757975396206,1e-08,235.19,235.18,34.49282353]
[1757975396406,0.70000001,235.19,235.18,34.06761731]
[1757975396606,0.70000001,235.19,235.18,6.01553094]
[1757975396806,0.70000001,235.19,235.18,38.67553094]
[1757975397023,0.70000001,235.19,235.18,64.67553094]
[1757975397713,0.70000001,235.19,235.18,32.01553094]
[1757975397917,0.70000001,235.19,235.18,64.65553094]
[1757975398127,0.70000001,235.19,235.18,32.01553094]
[1757975398423,0.70000001,235.19,235.18,64.65553094]
[1757975402338,0.70000001,235.19,235.18,32.01553094]
[1757975402529,0.70000001,235.19,235.18,64.65553094]
[1757975403116,1e-08,235.19,235.18,64.65553094]
[1757975403444,1e-08,235.19,235.18,40.70761731]
[1757975403735,1e-08,235.19,235.18,41.9649851]
[1757975406034,0.03,235.24,235.21,26.0]
[1757975406240,0.03,235.24,235.23,2.05208637]
[1757975406417,0.03,235.24,235.23,34.69208637]
[1757975406614,0.03,235.24,235.23,35.38208637]
[1757975406843,0.03,235.24,235.23,37.08519241]
[1757975407945,0.75,235.24,235.23,40.64635085]
[1757975408143,0.03,235.24,235.23,40.64635085]
[1757975408647,0.03,235.24,235.23,8.00635085]
[1757975408828,0.03,235.24,235.23,40.64635085]
[1757975410048,0.03,235.24,235.23,8.00635085]
[1757975410231,0.03,235.24,235.23,40.64635085]
[1757975415441,0.03,235.24,235.23,5.95426448]
[1757975415648,0.75,235.24,235.23,40.64635085]
[1757975416346,0.03,235.24,235.23,40.64635085]
[1757975420557,0.75,235.24,235.23,40.64635085]
[1757975420755,0.75,235.24,235.23,5.95426448]
[1757975420956,0.75,235.24,235.23,38.59426448]
[1757975422624,2.80208637,235.24,235.23,1.70310604]
[1757975422850,2.80208637,235.24,235.23,34.34310604]
[1757975423060,2.80208637,235.24,235.23,38.59426448]
[1757975423345,2.80208637,235.24,235.23,34.34310604]
[1757975424140,2.80208637,235.24,235.23,32.64]
[1757975426034,2.80208637,235.24,235.22,4.28082273]
[1757975426241,16.36768038,235.23,235.22,4.28082273]
[1757975426754,16.36768038,235.23,235.21,32.64]
[1757975426933,2.77208637,235.22,235.21,32.64]
[1757975431363,2.77208637,235.22,235.21,32.7]
[1757975431658,2.77208637,235.22,235.21,0.06]
[1757975431863,20.61901955,235.22,235.21,0.06]
[1757975432069,20.76118112,235.22,235.21,0.06]
[1757975433066,22.43635816,235.22,235.21,0.06]
[1757975434150,24.14077046,235.22,235.21,0.06]
[1757975437272,22.46559342,235.22,235.21,0.06]
[1757975437971,24.13780682,235.22,235.21,0.06]
[1757975438657,22.46559342,235.22,235.21,0.06]
[1757975441476,20.76118112,235.22,235.21,0.06]
[1757975447384,22.46537557,235.22,235.21,0.06]
[1757975448272,55.10537557,235.22,235.21,0.06]
[1757975448574,22.40537557,235.22,235.21,0.06]
[1757975449564,22.43537557,235.22,235.21,0.06]
[1757975449768,21.69804743,235.22,235.21,0.06]
[1757975456468,19.99385298,235.22,235.21,0.06]
[1757975459069,30.6222009,235.22,235.18,0.06]
[1757975459273,14.91035224,235.19,235.18,0.06]
[1757975459477,47.69251381,235.19,235.18,0.06]
[1757975459780,48.38251381,235.19,235.18,0.06]
[1757975460987,52.63439526,235.19,235.18,0.06]
[1757975465092,51.94439526,235.19,235.18,0.06]
[1757975465268,53.61895874,235.19,235.18,0.06]
[1757975465791,54.31895874,235.19,235.18,0.06]
[1757975469493,54.31895874,235.19,235.16,0.06]
[1757975469494,147.39559401,235.16,235.13,0.06]
[1757975469693,14.91035224,235.11,235.09,0.06]
[1757975469903,14.91035224,235.11,235.06,0.06]
[1757975469904,147.39559401,235.1,235.06,0.06]
[1757975470068,49.34707729,235.09,235.06,0.06]
[1757975470274,15.05251381,235.07,235.06,0.06]
[1757975470501,49.34707729,235.07,235.06,0.06]
[1757975471370,50.04707729,235.07,235.06,0.06]
[1757975471973,54.30112927,235.07,235.06,0.06]
[1757975472903,52.98637104,235.07,235.06,0.06]
[1757975473091,54.30112927,235.07,235.06,0.06]
[1757975475201,15.27015749,235.07,235.06,0.75]
[1757975475377,13.59559401,235.07,235.06,0.75]
[1757975475578,14.91035224,235.07,235.06,0.75]
[1757975476186,133.8,235.1,235.06,5.00423296]
[1757975476493,135.11475823,235.1,235.06,5.00423296]
[1757975476698,133.8,235.1,235.07,0.69]
[1757975477582,135.11475823,235.1,235.07,0.69]
[1757975478394,135.11475823,235.1,235.07,4.94394193]
[1757975478601,0.14216157,235.15,235.08,0.69]
[1757975478914,13.59559401,235.13,235.08,0.69]
[1757975479680,1.31475823,235.14,235.08,2.00475823]
[1757975479998,14.91035224,235.15,235.09,0.69]
[1757975480200,1.67260067,235.14,235.09,0.69]
[1757975480394,1.67260067,235.14,235.1,14.887282]
[1757975480593,1.67260067,235.14,235.11,0.69]
[1757975481582,1.67260067,235.14,235.12,4.25314732]
[1757975481786,13.59559401,235.15,235.12,4.25314732]
[1757975481787,13.59559401,235.15,235.13,0.69]
[1757975484106,13.59559401,235.15,235.14,0.69]
[1757975484289,15.26888677,235.15,235.14,0.69]
[1757975485485,15.26888677,235.15,235.13,4.25296644]
[1757975485688,13.59559401,235.15,235.13,4.94296644]
[1757975489210,133.8,235.16,235.14,0.69]
[1757975490190,133.8,235.16,235.15,0.69]
[1757975490388,133.8,235.16,235.15,4.94260472]
[1757975490909,133.8,235.16,235.15,6.25736295]
[1757975491719,133.8,235.16,235.15,4.94260472]
[1757975491912,133.8,235.16,235.15,6.25736295]
[1757975492911,13.59559401,235.2,235.15,16.88887475]
[1757975493113,13.59559401,235.2,235.16,2.01475823]
[1757975493310,13.59559401,235.2,235.17,0.7]
[1757975493707,13.59559401,235.2,235.15,16.89887475]
[1757975493708,14.25559401,235.2,235.15,16.89887475]
[1757975493908,14.25559401,235.2,235.16,0.7]
[1757975494104,13.59559401,235.2,235.16,0.7]
[1757975494722,13.59559401,235.2,235.17,4.25224305]
[1757975495121,14.25559401,235.2,235.17,4.25224305]
[1757975495722,0.66,235.19,235.16,4.25241091]
[1757975496111,0.66,235.18,235.16,4.25241091]
[1757975496442,14.25559401,235.2,235.16,4.25241091]
[1757975497035,14.25559401,235.2,235.16,4.95241091]
[1757975498631,0.66,235.19,235.16,4.25241091]
[1757975498825,13.59559401,235.2,235.17,0.7]
[1757975500836,13.59559401,235.2,235.18,4.25206225]
[1757975501630,13.62559401,235.2,235.18,4.25206225]
[1757975502118,13.62559401,235.2,235.16,5.56706177]
[1757975502323,14.28559401,235.2,235.16,5.56706177]
[1757975502713,14.28559401,235.2,235.16,4.25230354]
[1757975502919,2.33316727,235.19,235.16,4.25230354]
[1757975503122,0.66,235.18,235.16,4.25230354]
[1757975504031,1.67316727,235.19,235.15,4.25260472]
[1757975504235,0.66,235.17,235.15,5.56736295]
[1757975504542,2.33316727,235.19,235.15,5.56736295]
[1757975504718,1.67316727,235.19,235.15,5.56736295]
[1757975504914,0.66,235.18,235.15,5.56736295]
[1757975505115,0.66,235.17,235.15,5.56736295]
[1757975505438,0.66,235.17,235.15,4.25260472]
[1757975507549,13.59559401,235.18,235.12,1.31475823]
[1757975507720,7.23981924,235.19,235.11,26.0]
[1757975507721,1.31475823,235.14,235.11,26.0]
[1757975507926,1.97475823,235.13,235.08,4.31386896]
[1757975508126,0.66,235.12,235.08,5.01386896]
[1757975509044,13.59559401,235.13,235.09,0.7]
[1757975509245,14.25559401,235.13,235.09,0.7]
[1757975509445,0.66,235.12,235.08,0.06]
[1757975509634,0.66,235.12,235.08,0.76]
[1757975509829,0.66,235.12,235.08,5.01385841]
[1757975510143,13.59559401,235.13,235.08,5.01385841]
[1757975510344,13.59559401,235.13,235.09,2.01475823]
[1757975511548,14.25559401,235.13,235.1,4.25350914]
[1757975512935,13.59559401,235.13,235.1,4.25350914]
[1757975513135,0.66,235.12,235.1,4.25350914]
[1757975513737,13.59559401,235.13,235.1,4.25350914]
[1757975513940,14.29559401,235.13,235.1,4.25350914]
[1757975517631,13.59559401,235.13,235.1,4.25350914]
[1757975517838,0.7,235.12,235.1,4.25350914]
[1757975518243,0.7,235.12,235.09,4.25367275]
[1757975520447,1.67585907,235.13,235.09,4.94367275]
[1757975520652,2.37585907,235.13,235.09,4.94367275]
[1757975524236,0.7,235.13,235.09,4.94367275]
[1757975524644,2.37802977,235.13,235.09,4.94367275]
[1757975526529,2.37802977,235.13,235.09,6.99837059]
[1757975527053,147.42559401,235.14,235.08,0.06]
[1757975527054,13.59559401,235.09,235.08,0.06]
[1757975527230,17.32771011,235.09,235.08,0.06]
[1757975527433,18.01771011,235.09,235.08,0.06]
[1757975528226,15.96301227,235.09,235.08,0.06]
[1757975528426,18.01771011,235.09,235.08,0.06]
[1757975529033,15.27301227,235.09,235.08,0.06]
[1757975529435,15.96301227,235.09,235.08,0.06]
[1757975529651,22.27140018,235.09,235.08,0.06]
[1757975531934,22.41356175,235.09,235.08,0.06]
[1757975532959,15.65029185,235.07,235.06,0.06]
[1757975533146,50.08987168,235.07,235.06,0.06]
[1757975533452,50.77987168,235.07,235.06,0.06]
[1757975533970,55.03392366,235.07,235.06,0.06]
[1757975546873,54.34392366,235.07,235.06,0.06]
[1757975547374,55.03392366,235.07,235.06,0.06]
[1757975555459,55.02616476,235.07,235.06,0.06]
[1757975557356,54.33616476,235.07,235.06,0.06]
[1757975557975,15.26525337,235.07,235.06,2.80469784]
[1757975558565,13.59559401,235.07,235.06,2.80469784]
[1757975559178,0.03,235.08,235.06,7.0589308]
[1757975559372,0.03,235.08,235.07,2.74469784]
[1757975559969,0.03,235.08,235.07,6.99874982]
[1757975562761,0.03,235.08,235.07,2.74469784]
[1757975564187,0.03,235.08,235.06,2.11469784]
[1757975564393,0.03,235.08,235.07,0.69]
[1757975564564,15.298473,235.08,235.07,0.69]
[1757975564762,13.62559401,235.08,235.07,0.69]
[1757975565284,13.62559401,235.08,235.07,2.74469784]
[1757975566682,13.62559401,235.08,235.07,2.05469784]
[1757975567193,15.29898948,235.08,235.07,2.05469784]
[1757975568875,13.59559401,235.07,235.06,0.06]
[1757975569090,15.95898948,235.07,235.06,0.06]
[1757975569485,15.26898948,235.07,235.06,0.06]
[1757975570073,19.52304146,235.07,235.06,0.06]
[1757975571180,19.5249719,235.07,235.06,0.06]
[1757975572085,15.27091992,235.07,235.06,0.06]
[1757975573498,19.5249719,235.07,235.06,0.06]
[1757975573702,20.21582533,235.07,235.06,0.06]
[1757975573879,20.3579869,235.07,235.06,0.06]
[1757975583217,15.41393492,235.07,235.06,0.06]
[1757975583420,20.3679869,235.07,235.06,0.06]
[1757975585396,18.69180756,235.07,235.06,0.06]
[1757975585587,52.62748595,235.07,235.06,0.06]
[1757975586000,54.30557387,235.07,235.06,0.06]
[1757975586395,52.62748595,235.07,235.06,0.06]
[1757975587605,54.30557792,235.07,235.06,0.06]
[1757975587915,52.62748595,235.07,235.06,0.06]
[1757975589316,54.30557208,235.07,235.06,0.06]
[1757975593714,147.53775558,235.06,235.05,0.06]
[1757975593917,174.73343397,235.04,235.03,1e-08]
[1757975594216,209.0315201,235.04,235.03,1e-08]
[1757975594423,209.7315201,235.04,235.03,1e-08]
[1757975596211,213.98611506,235.04,235.03,1e-08]
[1757975596519,212.30802893,235.04,235.03,1e-08]
[1757975596722,213.98523847,235.04,235.03,1e-08]
[1757975598211,80.30523847,235.04,235.03,1e-08]
[1757975599598,85.56795203,235.04,235.03,1e-08]
[1757975601319,85.56795203,235.04,234.9,0.69]
[1757975601320,13.59559401,234.96,234.9,0.69]
[1757975601620,0.14216157,234.93,234.9,0.69]
[1757975601922,148.79343396,234.92,234.88,0.69]
[1757975602108,15.05343397,234.9,234.89,0.69]
[1757975602303,13.73775558,234.9,234.83,1.31567839]
[1757975602905,17.99495894,234.9,234.84,0.69]
[1757975603106,13.73775558,234.9,234.85,1.31567839]
[1757975603316,13.73775558,234.9,234.86,0.69]
[1757975604336,13.73775558,234.9,234.86,2.00567839]
[1757975604502,13.73775558,234.9,234.87,0.69]
[1757975605334,17.99498528,234.9,234.88,0.69]
[1757975605535,17.99498528,234.9,234.89,0.69]
[1757975605835,17.99498528,234.9,234.83,4.25839969]
[1757975606008,17.99498528,234.9,234.87,0.69]
[1757975606213,17.99498528,234.9,234.88,0.69]
[1757975607929,13.73775558,234.9,234.89,0.69]
[1757975608422,17.99488627,234.9,234.89,0.69]
[1757975609327,17.99488627,234.9,234.87,0.75]
[1757975609528,17.99488627,234.9,234.88,0.69]
[1757975610024,133.73999999,234.89,234.88,0.69]
[1757975612713,13.59559401,234.88,234.87,0.06]
[1757975612926,13.59559401,234.88,234.87,0.76]
[1757975613128,13.59559401,234.88,234.87,0.06]
[1757975613615,13.59559401,234.88,234.87,0.76]
[1757975613822,13.59559401,234.88,234.87,0.06]
[1757975614016,13.59559401,234.88,234.87,0.76]
[1757975614245,13.59559401,234.88,234.87,0.06]
[1757975614840,13.59559401,234.88,234.87,0.76]
[1757975615024,13.59559401,234.88,234.87,2.07567839]
[1757975616622,13.59559401,234.88,234.87,0.76]
[1757975616821,13.59559401,234.88,234.87,2.07567839]
[1757975620649,13.59559401,234.88,234.87,0.06]
[1757975621840,14.31559401,234.88,234.87,0.06]
[1757975622141,18.57308719,234.88,234.87,0.06]
[1757975622944,17.85308719,234.88,234.87,0.06]
[1757975623923,18.57308719,234.88,234.87,0.06]
[1757975624728,20.03092715,234.88,234.87,0.06]
[1757975624923,21.69829843,234.88,234.87,0.06]
[1757975625122,21.69829843,234.88,234.84,0.06]
[1757975625123,13.59559401,234.85,234.84,0.06]
[1757975625353,49.48080525,234.85,234.84,0.06]
[1757975625651,50.20080525,234.85,234.84,0.06]
[1757975626120,17.44080525,234.85,234.84,0.06]
[1757975626322,50.20080525,234.85,234.84,0.06]
[1757975626834,54.45884229,234.85,234.84,0.06]
[1757975628846,54.43884229,234.85,234.84,0.06]
[1757975630140,0.14216157,234.84,234.76,0.7]
[1757975630337,13.59559401,234.79,234.76,0.7]
[1757975630526,13.59559401,234.77,234.76,0.7]
[1757975633035,17.85508201,234.77,234.75,0.7]
[1757975633846,147.39559401,234.76,234.75,0.7]
[1757975634155,13.59559401,234.75,234.72,4.26036408]
[1757975634357,13.59559401,234.75,234.73,2.06107827]
[1757975634646,13.59559401,234.75,234.74,0.66]
[1757975637052,14.25559401,234.75,234.72,2.06107827]
[1757975637955,13.59559401,234.75,234.72,2.06107827]
[1757975638129,13.59559401,234.75,234.71,0.66]
[1757975638130,13.59559401,234.75,234.73,2.72107827]
[1757975638328,13.59559401,234.75,234.74,0.66]
[1757975640654,133.8,234.76,234.74,2.72107827]
[1757975640949,133.8,234.76,234.75,2.06107827]
[1757975641150,133.8,234.76,234.75,2.72107827]
[1757975642854,133.8,234.76,234.75,0.66]
[1757975643055,133.8,234.76,234.75,2.72107827]
[1757975644260,133.8,234.76,234.75,2.06107827]
[1757975644555,133.8,234.76,234.75,2.76107827]
[1757975644951,133.8,234.76,234.75,7.02092917]
[1757975645340,133.8,234.76,234.75,2.76107827]
[1757975646459,133.8,234.76,234.75,7.02092917]
[1757975649843,133.8,234.76,234.75,39.74092917]
[1757975651550,14.30559401,234.83,234.75,39.74092917]
[1757975651551,13.59559401,234.81,234.75,39.74092917]
[1757975651747,13.59559401,234.81,234.8,2.06107827]
[1757975652165,13.59559401,234.81,234.78,4.25924024]
[1757975652468,13.59559401,234.81,234.8,2.06107827]
[1757975653176,133.8,234.82,234.8,2.06107827]
[1757975653348,133.8,234.82,234.81,2.06107827]
[1757975653545,0.03,234.85,234.81,2.76107827]
[1757975653752,0.03,234.85,234.78,16.96858497]
[1757975653753,0.03,234.85,234.84,2.06107827]
[1757975653945,0.03,234.85,234.84,6.31929663]
[1757975657052,0.03,234.85,234.83,4.25839969]
[1757975657249,0.03,234.85,234.84,2.06107827]
[1757975657477,0.03,234.85,234.84,2.76107827]
[1757975658583,0.03,234.85,234.84,6.31929663]
[1757975661582,0.03,234.85,234.84,6.37929663]
[1757975667386,0.03,234.85,234.84,7.07929663]
[1757975667773,0.03,234.85,234.84,6.37929663]
[1757975668583,14.33559401,234.85,234.84,0.06]
[1757975668772,18.07133582,234.85,234.84,0.06]
[1757975668961,50.79133582,234.85,234.84,0.06]
[1757975669397,17.99597394,234.84,234.81,0.06]
[1757975669589,15.79883385,234.82,234.81,0.06]
[1757975669772,50.23349739,234.82,234.81,0.06]
[1757975670086,50.94349739,234.82,234.81,0.06]
[1757975671667,55.20207843,234.82,234.81,0.06]
[1757975671868,55.20094235,234.82,234.81,0.06]
[1757975675276,48.86128304,234.82,234.81,0.06]
[1757975675671,16.12128304,234.82,234.81,0.06]
[1757975678702,20.37986408,234.82,234.81,0.06]
[1757975682001,16.12128304,234.82,234.81,0.06]
[1757975683603,20.37986408,234.82,234.81,0.06]
[1757975684895,22.44094235,234.82,234.81,0.06]
[1757975689279,55.16094235,234.82,234.81,0.06]
[1757975690988,22.44094235,234.82,234.81,0.06]
[1757975691205,52.38914845,234.82,234.81,0.06]
[1757975691390,55.13022672,234.82,234.81,0.06]
[1757975691791,22.41022672,234.82,234.81,0.06]
[1757975691987,55.13022672,234.82,234.81,0.06]
[1757975693808,54.38816711,234.82,234.81,0.06]
[1757975697293,56.09563515,234.82,234.81,0.06]
[1757975698110,23.37563515,234.82,234.81,0.06]
[1757975698291,56.07563515,234.82,234.81,0.06]
[1757975700409,55.39563515,234.82,234.81,0.06]
[1757975700821,56.11563515,234.82,234.81,0.06]
[1757975701495,56.11317643,234.82,234.81,0.06]
[1757975705215,82.11317643,234.82,234.81,0.06]
[1757975705603,92.75962903,234.82,234.78,0.06]
[1757975705919,15.05677424,234.79,234.78,0.06]
[1757975706099,49.40712735,234.79,234.78,0.06]
[1757975706297,50.06712735,234.79,234.78,0.06]
[1757975706626,51.77481408,234.79,234.78,0.06]
[1757975707315,56.03393925,234.79,234.78,0.06]
[1757975708315,41.05677424,234.77,234.76,1e-08]
[1757975708623,75.40712735,234.77,234.76,1e-08]
[1757975709000,13.73775558,234.75,234.67,0.71]
[1757975709199,13.59559401,234.7,234.67,0.71]
[1757975709522,4.26112152,234.68,234.67,0.71]
[1757975709720,19.49440697,234.68,234.65,1.31901866]
[1757975709922,17.85671553,234.68,234.65,1.31901866]
[1757975710312,17.85671553,234.68,234.66,0.71]
[1757975710707,13.59559401,234.68,234.66,0.71]
[1757975712916,13.59559401,234.68,234.67,1.31901866]
[1757975713124,15.23322151,234.68,234.67,2.02901866]
[1757975713824,133.79999999,234.69,234.67,2.02901866]
[1757975714027,147.395594,234.69,234.68,1.31901866]
[1757975714210,149.03365169,234.69,234.68,2.02901866]
[1757975714521,13.59559401,234.68,234.62,4.26140118]
[1757975714713,13.59559401,234.68,234.66,0.71]
[1757975714915,17.85674887,234.68,234.66,0.71]
[1757975715109,13.59559401,234.67,234.66,0.71]
[1757975715314,46.33559401,234.67,234.66,0.71]
[1757975715515,13.59559401,234.67,234.66,0.71]
[1757975717427,17.85689711,234.67,234.66,0.71]
[1757975718515,19.4931062,234.67,234.66,0.71]
[1757975719027,13.59559401,234.66,234.65,1.37901866]
[1757975719227,13.59559401,234.66,234.65,2.08901866]
[1757975719917,17.85707871,234.66,234.65,2.08901866]
[1757975722533,17.85707871,234.66,234.65,0.06]
[1757975724016,54.33195253,234.66,234.65,0.06]
[1757975727218,21.61195253,234.66,234.65,1e-08]
[1757975727419,54.37195253,234.66,234.65,1e-08]
[1757975728231,54.3694985,234.66,234.65,1e-08]
[1757975728435,56.07813351,234.66,234.65,1e-08]
[1757975733621,23.31813351,234.66,234.65,1e-08]
[1757975733823,56.07813351,234.66,234.65,1e-08]
[1757975734340,23.31813351,234.66,234.65,1e-08]
[1757975734540,56.05813351,234.66,234.65,1e-08]
[1757975735548,23.31813351,234.66,234.65,1e-08]
[1757975735848,55.39813351,234.66,234.65,1e-08]
[1757975736341,53.6894985,234.66,234.65,1e-08]
[1757975736735,54.3894985,234.66,234.65,1e-08]
[1757975737539,53.6894985,234.66,234.65,1e-08]
[1757975737727,55.3982065,234.66,234.65,1e-08]
[1757975738627,22.6582065,234.66,234.65,1e-08]
[1757975738822,56.1182065,234.66,234.65,1e-08]
[1757975739643,23.3582065,234.66,234.65,1e-08]
[1757975739848,56.1182065,234.66,234.65,1e-08]
[1757975741528,23.3582065,234.66,234.65,1e-08]
[1757975741730,56.1182065,234.66,234.65,1e-08]
[1757975745941,56.1182065,234.66,234.63,1e-08]
[1757975745942,39.59559401,234.64,234.63,1e-08]
[1757975746145,74.10899514,234.64,234.63,1e-08]
[1757975746341,76.1280138,234.64,234.63,1e-08]
[1757975746543,77.83708684,234.64,234.63,1e-08]
[1757975747052,82.09893477,234.64,234.63,1e-08]
[1757975747254,20.0,234.62,234.53,0.68]
[1757975747446,13.73775558,234.54,234.53,0.68]
[1757975747636,46.47775558,234.54,234.53,0.68]
[1757975747950,32.90216157,234.54,234.53,0.68]
[1757975748158,46.49775558,234.54,234.53,0.68]
[1757975748353,46.35559401,234.54,234.53,0.68]
[1757975748855,13.59559401,234.54,234.53,0.68]
[1757975749152,13.59559401,234.54,234.53,0.18]
[1757975752258,13.59559401,234.53,234.5,1.31901866]
[1757975752854,13.59559401,234.53,234.51,0.68]
[1757975753042,13.59559401,234.53,234.52,0.68]
[1757975756177,17.85944085,234.53,234.5,2.78519292]
[1757975756345,17.85944085,234.53,234.51,0.66]
[1757975757151,17.85944085,234.53,234.5,0.06]
[1757975757563,13.59559401,234.53,234.51,0.66]
[1757975757751,13.59559401,234.53,234.52,0.66]
[1757975758641,32.76,234.53,234.52,0.66]
[1757975759148,13.59559401,234.54,234.52,0.66]
[1757975759359,46.35559401,234.54,234.52,0.66]
[1757975759558,13.59559401,234.54,234.51,6.32937165]
[1757975759750,13.59559401,234.54,234.52,0.66]
[1757975759950,13.59559401,234.54,234.52,2.72519292]